fUST/lending_fUST_20250227
["ID","MTS","AMOUNT","RATE_DAILY","PERIOD"]
[354677026,1740612652120,-385.543995,0.00049589,120]
[354677027,1740612652130,-385.543995,0.00049589,120]
[354677028,1740612652333,-963.51,0.00049589,120]
[354677029,1740612652342,-1872.17,0.00049589,120]
[354677030,1740612652352,-7675.21,0.00049589,120]
[354677031,1740612652361,-151.0,0.00049589,120]
[354677032,1740612652371,-3447.65,0.00049589,120]
[354677033,1740612652380,-382.945595,0.00049589,120]
[354677034,1740612652391,-382.945595,0.00049589,120]
[354677035,1740612652405,-500.0,0.00049589,120]
[354677036,1740612652415,-1518.89,0.00049589,120]
[354677037,1740612652424,-828.63,0.00049589,120]
[354677038,1740612652433,-874.37,0.00049589,120]
[354677039,1740612652443,-16446.27,0.00049589,120]
[354677040,1740612652452,-987.91,0.00049589,120]
[354677041,1740612652461,-544.41,0.00049589,120]
[354677042,1740612652471,-151.0,0.00049589,120]
[354677043,1740612652480,-500.0,0.00049589,120]
[354677044,1740612652489,-500.0,0.00049589,120]
[354677045,1740612652499,-500.0,0.00049589,120]
[354677046,1740612652508,-160.0,0.0004959,3]
[354677047,1740612652517,-1207.51,0.00049594,120]
[354677048,1740612652526,-818.25,0.00049594,120]
[354677049,1740612652535,-500.0,0.00049594,120]
[354677050,1740612652544,-582.64,0.00049594,120]
[354677051,1740612652553,-500.0,0.00049594,120]
[354677052,1740612652563,-500.0,0.00049594,120]
[354677053,1740612652572,-565.06,0.00049594,120]
[354677054,1740612652581,-797.5,0.00049594,120]
[354677055,1740612652590,-699.41,0.00049594,120]
[354677056,1740612652599,-2789.44,0.00049594,120]
[354677057,1740612652608,-650.93,0.00049594,120]
[354677058,1740612652618,-910.21,0.00049594,120]
[354677059,1740612652627,-500.0,0.00049594,120]
[354677060,1740612652636,-3161.02,0.00049594,120]
[354677061,1740612652647,-500.0,0.00049594,120]
[354677062,1740612652657,-500.0,0.00049594,120]
[354677063,1740612652666,-725.05,0.00049594,120]
[354677064,1740612652675,-500.0,0.00049594,120]
[354677065,1740612652687,-500.0,0.00049594,120]
[354677066,1740612652697,-1532.22,0.00049594,120]
[354677067,1740612652706,-3123.49,0.00049594,120]
[354677068,1740612652716,-696.04,0.00049594,120]
[354677069,1740612652725,-775.5,0.00049594,120]
[354677070,1740612652737,-1560.0,0.00049594,120]
[354677071,1740612652746,-554.15,0.00049594,120]
[354677072,1740612652756,-508.29,0.00049594,120]
[354677073,1740612652767,-636.3,0.00049594,120]
[354677074,1740612652777,-1875.09,0.00049594,120]
[354677075,1740612652786,-500.0,0.00049594,120]
[354677076,1740612652795,-506.26,0.00049594,120]
[354677077,1740612652804,-727.01,0.00049594,120]
[354677078,1740612652813,-738.9,0.00049594,120]
[354677079,1740612652822,-500.0,0.00049594,120]
[354677080,1740612652832,-500.0,0.00049594,120]
[354677081,1740612652841,-500.0,0.00049594,120]
[354677082,1740612652850,-500.0,0.00049594,15]
[354677083,1740612652860,-500.0,0.00049594,120]
[354677084,1740612652869,-2768.85,0.00049594,120]
[354677085,1740612652878,-937.23,0.00049594,120]
[354677086,1740612652888,-786.35,0.00049594,120]
[354677087,1740612652899,-3343.65,0.000496,30]
[354677088,1740612652908,-5450.65,0.000496,30]
[354677089,1740612652918,-250282.84,0.000496,30]
[354677090,1740612652929,-476.944486,0.000496,30]
[354677091,1740612652938,-476.944486,0.000496,30]
[354677092,1740612652947,-151.0,0.000496,120]
[354677093,1740612652956,-151.0,0.000496,120]
[354677094,1740612652965,-151.0,0.000496,120]
[354677095,1740612652975,-152.116774,0.000496,120]
[354677096,1740612652985,-253.599015,0.000496,120]
[354677097,1740612652994,-253.599015,0.000496,120]
[354677098,1740612653004,-977.962218,0.000496,120]
[354677099,1740612653013,-977.962218,0.000496,120]
[354677100,1740612653023,-298.512815,0.000496,120]
[354677101,1740612653032,-298.512815,0.000496,120]
[354677102,1740612653041,-160.0,0.000496,30]
[354677103,1740612653051,-540.54,0.00049618,120]
[354677104,1740612653060,-717.99,0.00049618,120]
[354677105,1740612653069,-913.57,0.00049618,120]
[354677106,1740612653078,-500.0,0.00049618,120]
[354677107,1740612653087,-1771.38,0.00049618,120]
[354677108,1740612653096,-500.0,0.00049618,120]
[354677109,1740612653106,-1070.59,0.00049618,120]
[354677110,1740612653116,-500.0,0.00049618,120]
[354677111,1740612653127,-2028.34,0.00049618,120]
[354677112,1740612653138,-724.64,0.00049618,120]
[354677113,1740612653149,-500.0,0.00049618,120]
[354677114,1740612653158,-500.0,0.00049618,120]
[354677115,1740612653167,-258.84710143,0.00049618,120]
[354677116,1740612653177,-1677.07,0.00049618,120]
[354677117,1740612653187,-700.65,0.00049618,120]
[354677118,1740612653198,-1712.4,0.00049618,120]
[354677119,1740612653207,-500.0,0.00049618,120]
[354677120,1740612653216,-2539.69,0.00049618,120]
[354677121,1740612653225,-712.64,0.00049618,120]
[354677122,1740612653235,-500.0,0.00049618,120]
[354677123,1740612653245,-500.0,0.00049618,120]
[354677124,1740612653254,-810.43,0.00049618,120]
[354677125,1740612653263,-3307.1,0.00049618,120]
[354677126,1740612653273,-500.0,0.00049618,120]
[354677127,1740612653283,-500.0,0.00049618,120]
[354677128,1740612653293,-618.09,0.00049618,120]
[354677129,1740612653302,-882.96,0.00049618,120]
[354677130,1740612653311,-1050.94,0.00049618,120]
[354677131,1740612653321,-500.0,0.00049618,120]
[354677132,1740612653331,-500.0,0.00049618,120]
[354677133,1740612653341,-625.66,0.00049618,120]
[354677134,1740612653350,-1339.38,0.00049618,120]
[354677135,1740612653360,-778.41,0.00049618,120]
[354677136,1740612653370,-500.0,0.00049618,120]
[354677137,1740612653379,-500.0,0.00049618,120]
[354677138,1740612653389,-500.0,0.00049618,120]
[354677139,1740612653399,-536.72,0.00049618,120]
[354677140,1740612653409,-500.0,0.00049618,120]
[354677141,1740612653419,-500.0,0.00049618,120]
[354677142,1740612653428,-500.0,0.00049618,120]
[354677143,1740612653437,-500.0,0.00049618,120]
[354677144,1740612653446,-500.0,0.0004962,120]
[354677145,1740612653455,-500.0,0.0004962,120]
[354677146,1740612653465,-611.27,0.0004962,120]
[354677147,1740612653474,-500.0,0.00049733,2]
[354677148,1740612653484,-1113.411115,0.000498,65]
[354677149,1740612653493,-500.0,0.00049861,120]
[354677150,1740612653503,-2778.45,0.00049861,120]
[354677151,1740612653512,-500.0,0.00049861,120]
[354677152,1740612653521,-500.0,0.00049861,120]
[354677153,1740612653531,-861.01,0.00049861,120]
[354677154,1740612653540,-500.0,0.00049861,120]
[354677155,1740612653550,-659.09,0.00049861,120]
[354677156,1740612653560,-1687.34,0.00049861,120]
[354677157,1740612653569,-1507.91,0.00049861,120]
[354677158,1740612653578,-795.66,0.00049861,120]
[354677159,1740612653587,-500.0,0.00049861,120]
[354677160,1740612653597,-1484.64,0.00049861,120]
[354677161,1740612653607,-896.66,0.00049861,120]
[354677162,1740612653616,-1237.88,0.00049861,120]
[354677163,1740612653625,-1998.85,0.00049861,120]
[354677164,1740612653634,-500.0,0.00049861,120]
[354677165,1740612653644,-1476.84,0.00049861,120]
[354677166,1740612653661,-500.0,0.00049861,120]
[354677167,1740612653673,-842.28,0.00049861,120]
[354677168,1740612653683,-1327.97,0.00049861,120]
[354677169,1740612653696,-978.17,0.00049861,120]
[354677170,1740612653706,-500.0,0.00049861,45]
[354677171,1740612653716,-35665.21,0.00049861,120]
[354677172,1740612653725,-500.0,0.00049861,120]
[354677173,1740612653737,-1674.6,0.00049861,120]
[354677174,1740612653746,-3374.64,0.00049861,120]
[354677175,1740612653756,-3689.39,0.00049861,120]
[354677176,1740612653766,-999.91,0.00049861,120]
[354677177,1740612653776,-1654.58,0.00049861,120]
[354677178,1740612653786,-8800.67,0.00049861,120]
[354677179,1740612653795,-572.35,0.00049861,120]
[354677180,1740612653805,-2141.75,0.00049861,120]
[354677181,1740612653814,-500.0,0.00049861,120]
[354677182,1740612653824,-15272.81,0.00049861,120]
[354677183,1740612653834,-500.0,0.00049861,120]
[354677184,1740612653843,-1712.31,0.00049861,120]
[354677185,1740612653853,-1889.46,0.00049861,120]
[354677186,1740612653862,-500.0,0.00049861,120]
[354677187,1740612653871,-500.0,0.00049861,120]
[354677188,1740612653882,-112701.3,0.00049861,7]
[354677189,1740612653891,-500.0,0.00049861,120]
[354677190,1740612653902,-1846.65,0.00049861,120]
[354677191,1740612653912,-1230.19,0.00049861,120]
[354677192,1740612653922,-385.543995,0.00049861,120]
[354677193,1740612653932,-385.543995,0.00049861,120]
[354677194,1740612653942,-500.0,0.00049861,120]
[354677195,1740612653951,-513.49,0.00049861,120]
[354677196,1740612653961,-500.0,0.00049861,120]
[354677197,1740612653970,-562.96,0.00049861,120]
[354677198,1740612653979,-151.0,0.00049861,120]
[354677199,1740612653989,-382.945595,0.00049861,120]
[354677200,1740612653998,-382.945595,0.00049861,120]
[354677201,1740612654008,-500.0,0.00049861,120]
[354677202,1740612654018,-500.0,0.00049861,120]
[354677203,1740612654027,-151.0,0.00049861,120]
[354677204,1740612654037,-500.0,0.00049861,120]
[354677205,1740612654047,-649.28,0.00049862,120]
[354677206,1740612654056,-500.0,0.00049862,120]
[354677207,1740612654065,-500.0,0.00049862,120]
[354677208,1740612654075,-500.0,0.00049862,120]
[354677209,1740612654084,-500.0,0.00049862,120]
[354677210,1740612654093,-683.51,0.00049862,120]
[354677211,1740612654103,-617.84849593,0.00049862,120]
[354677212,1740612654112,-500.0,0.00049862,120]
[354677213,1740612654122,-500.0,0.00049862,120]
[354677214,1740612654131,-500.0,0.00049862,120]
[354677215,1740612654141,-618.32,0.00049862,120]
[354677216,1740612654151,-702.29,0.00049862,120]
[354677217,1740612654160,-500.0,0.00049862,120]
[354677218,1740612654169,-500.0,0.00049862,120]
[354677219,1740612654179,-500.0,0.00049862,120]
[354677220,1740612654188,-500.0,0.00049862,120]
[354677221,1740612654198,-500.0,0.00049862,120]
[354677222,1740612654207,-500.0,0.00049862,120]
[354677223,1740612654218,-500.0,0.00049862,120]
[354677224,1740612654227,-623.05,0.00049862,120]
[354677225,1740612654237,-812.36,0.00049862,120]
[354677226,1740612654247,-500.0,0.00049862,120]
[354677227,1740612654256,-500.0,0.00049862,120]
[354677228,1740612654265,-500.0,0.00049862,120]
[354677229,1740612654275,-500.0,0.00049862,120]
[354677230,1740612654284,-500.0,0.00049862,120]
[354677231,1740612654294,-977.8,0.00049862,120]
[354677232,1740612654303,-500.0,0.00049862,120]
[354677233,1740612654312,-500.0,0.00049862,120]
[354677234,1740612654322,-500.0,0.00049862,120]
[354677235,1740612654333,-500.0,0.00049862,120]
[354677236,1740612654344,-500.0,0.00049862,120]
[354677237,1740612654355,-501.89730355,0.00049862,120]
[354677238,1740612654365,-846.39,0.00049862,120]
[354677239,1740612654374,-322.736773,0.00049862,120]
[354677240,1740612654384,-500.0,0.00049862,120]
[354677241,1740612654394,-322.736773,0.00049862,120]
[354677242,1740612654403,-254.826343,0.00049862,120]
[354677243,1740612654413,-564.78,0.00049862,120]
[354677244,1740612654422,-254.826343,0.00049862,120]
[354677245,1740612654432,-295.42351402,0.00049862,120]
[354677246,1740612654441,-539.55,0.00049862,120]
[354677247,1740612654451,-500.0,0.00049862,120]
[354677248,1740612654460,-500.0,0.00049862,120]
[354677249,1740612654470,-505.49906312,0.00049862,120]
[354677250,1740612654479,-500.0,0.00049862,120]
[354677251,1740612654488,-354.7588931,0.00049862,120]
[354677252,1740612654498,-1428.1,0.00049862,120]
[354677253,1740612654508,-500.0,0.00049862,120]
[354677254,1740612654517,-600.9,0.00049862,120]
[354677255,1740612654526,-500.0,0.00049862,120]
[354677256,1740612654536,-500.0,0.00049862,120]
[354677257,1740612654545,-500.0,0.00049862,120]
[354677258,1740612654555,-151.316785,0.00049862,120]
[354677259,1740612654564,-197.24196433,0.00049862,120]
[354677260,1740612654574,-500.0,0.00049862,120]
[354677261,1740612654584,-615.68,0.00049862,120]
[354677262,1740612654594,-500.0,0.00049862,120]
[354677263,1740612654603,-802.71,0.00049862,120]
[354677264,1740612654613,-859.89,0.00049862,120]
[354677265,1740612654623,-500.0,0.00049862,120]
[354677266,1740612654632,-500.0,0.00049862,120]
[354677267,1740612654642,-1087.51,0.00049862,120]
[354677268,1740612654652,-500.0,0.00049862,120]
[354677269,1740612654662,-151.0,0.00049862,120]
[354677270,1740612654672,-500.0,0.00049862,120]
[354677271,1740612654682,-500.0,0.00049862,120]
[354677272,1740612654693,-151.0,0.00049862,120]
[354677273,1740612654703,-1626.2,0.00049862,120]
[354677274,1740612654713,-500.0,0.00049862,120]
[354677275,1740612654723,-500.0,0.00049862,120]
[354677276,1740612654735,-500.0,0.00049862,120]
[354677277,1740612654745,-500.0,0.00049862,120]
[354677278,1740612654755,-300.0,0.00049862,120]
[354677279,1740612654765,-500.0,0.00049862,120]
[354677280,1740612654776,-732.33,0.00049862,120]
[354677281,1740612654787,-500.0,0.00049862,120]
[354677282,1740612654796,-462.66210424,0.00049862,120]
[354677283,1740612654806,-522.21,0.00049862,120]
[354677284,1740612654817,-531.78,0.00049862,120]
[354677285,1740612654827,-500.0,0.00049862,120]
[354677286,1740612654837,-745.32,0.00049862,120]
[354677287,1740612654847,-1319.72,0.00049862,120]
[354677288,1740612654856,-901.96,0.00049862,120]
[354677289,1740612655019,-500.0,0.00049862,120]
[354677290,1740612655029,-506.91,0.00049862,120]
[354677291,1740612655039,-630.32250991,0.00049862,120]
[354677292,1740612655048,-500.0,0.00049862,120]
[354677293,1740612655057,-714.42,0.00049862,120]
[354677294,1740612655067,-500.0,0.00049862,120]
[354677295,1740612655077,-500.0,0.00049862,120]
[354677296,1740612655086,-500.0,0.00049862,120]
[354677297,1740612655095,-500.0,0.00049863,120]
[354677298,1740612655104,-500.0,0.00049863,120]
[354677299,1740612655113,-500.0,0.00049863,120]
[354677300,1740612655122,-500.0,0.00049863,120]
[354677301,1740612655132,-531.31439289,0.00049863,120]
[354677302,1740612655141,-500.0,0.00049863,120]
[354677303,1740612655153,-500.0,0.00049863,120]
[354677304,1740612655162,-500.0,0.00049863,120]
[354677305,1740612655171,-500.0,0.00049863,120]
[354677306,1740612655181,-663.11,0.00049863,120]
[354677307,1740612655191,-690.9,0.00049863,120]
[354677308,1740612655200,-500.0,0.00049863,120]
[354677309,1740612655209,-500.0,0.00049863,120]
[354677310,1740612655219,-596.61919945,0.00049863,120]
[354677311,1740612655228,-500.0,0.00049863,120]
[354677312,1740612655238,-500.0,0.00049863,120]
[354677313,1740612655247,-500.0,0.00049863,120]
[354677314,1740612655256,-500.0,0.00049863,120]
[354677315,1740612655265,-500.0,0.00049863,120]
[354677316,1740612655274,-541.34,0.00049863,120]
[354677317,1740612655283,-545.66,0.00049863,120]
[354677318,1740612655292,-500.0,0.00049863,120]
[354677319,1740612655302,-500.0,0.00049863,120]
[354677320,1740612655311,-683.01,0.00049863,120]
[354677321,1740612655320,-500.0,0.00049863,120]
[354677322,1740612655329,-500.0,0.00049863,120]
[354677323,1740612655338,-542.36816072,0.00049863,120]
[354677324,1740612655347,-500.0,0.00049863,120]
[354677325,1740612655356,-500.0,0.00049863,120]
[354677326,1740612655365,-498.10411139,0.00049863,120]
[354677327,1740612655374,-500.0,0.00049863,120]
[354677328,1740612655384,-880.49,0.00049863,120]
[354677329,1740612655395,-500.0,0.00049863,120]
[354677330,1740612655404,-500.0,0.00049863,120]
[354677331,1740612655413,-500.0,0.00049863,120]
[354677332,1740612655422,-500.0,0.00049863,120]
[354677333,1740612655432,-500.0,0.00049863,120]
[354677334,1740612655441,-500.0,0.00049863,120]
[354677335,1740612655450,-500.0,0.00049863,120]
[354677336,1740612655459,-500.0,0.00049863,120]
[354677337,1740612655468,-500.0,0.00049863,120]
[354677338,1740612655477,-500.0,0.00049863,120]
[354677339,1740612655487,-500.0,0.00049863,120]
[354677340,1740612655496,-500.0,0.00049863,120]
[354677341,1740612655505,-500.0,0.00049863,120]
[354677342,1740612655514,-200.0,0.00049863,7]
[354677343,1740612655523,-500.0,0.00049863,120]
[354677344,1740612655532,-500.0,0.00049863,30]
[354677345,1740612655542,-500.0,0.00049863,120]
[354677346,1740612655551,-1645.83,0.00049863,120]
[354677347,1740612655560,-500.0,0.00049863,120]
[354677348,1740612655569,-514.22389054,0.00049863,120]
[354677349,1740612655578,-500.0,0.00049863,120]
[354677350,1740612655587,-500.0,0.00049863,120]
[354677351,1740612655596,-958.64,0.00049863,120]
[354677352,1740612655605,-500.0,0.00049863,120]
[354677353,1740612655614,-759.37,0.00049863,120]
[354677354,1740612655624,-500.0,0.00049863,120]
[354677355,1740612655633,-500.0,0.00049863,120]
[354677356,1740612655643,-500.0,0.00049863,120]
[354677357,1740612655652,-500.0,0.00049863,120]
[354677358,1740612655661,-500.0,0.00049863,120]
[354677359,1740612655671,-500.0,0.00049863,120]
[354677360,1740612655680,-1087.06,0.00049863,120]
[354677361,1740612655690,-151.0,0.00049863,120]
[354677362,1740612655702,-743.94,0.00049863,120]
[354677363,1740612655712,-1536.490674,0.00049863,120]
[354677364,1740612655721,-500.0,0.00049863,120]
[354677365,1740612655730,-899.12,0.00049863,120]
[354677366,1740612655742,-500.0,0.00049863,120]
[354677367,1740612655751,-168.258599,0.00049863,120]
[354677368,1740612655760,-168.258599,0.00049863,120]
[354677369,1740612655770,-151.0,0.00049863,120]
[354677370,1740612655779,-1139.33,0.00049863,120]
[354677371,1740612655789,-151.0,0.00049863,120]
[354677372,1740612655798,-969.63,0.00049863,120]
[354677373,1740612655807,-1562.95,0.00049863,120]
[354677374,1740612655816,-204.203369,0.00049863,3]
[354677375,1740612655827,-2036.394798,0.00049863,120]
[354677376,1740612655838,-2036.394798,0.00049863,120]
[354677377,1740612655849,-413.365869,0.00049863,110]
[354677378,1740612655858,-413.365869,0.00049863,110]
[354677379,1740612655868,-151.0,0.00049863,120]
[354677380,1740612655877,-294.502386,0.00049863,120]
[354677381,1740612655887,-151.0,0.00049863,120]
[354677382,1740612655896,-151.0,0.00049863,120]
[354677383,1740612655905,-689.260793,0.00049863,120]
[354677384,1740612655914,-476.944486,0.00049863,30]
[354677385,1740612655923,-689.260793,0.00049863,120]
[354677386,1740612655932,-476.944486,0.00049863,30]
[354677387,1740612655942,-151.0,0.00049863,120]
[354677388,1740612655951,-151.0,0.00049863,120]
[354677389,1740612655960,-241.442179,0.00049863,120]
[354677390,1740612655970,-241.442179,0.00049863,120]
[354677391,1740612655979,-151.0,0.00049863,120]
[354677392,1740612655987,-151.0,0.00049863,120]
[354677393,1740612655997,-151.0,0.00049863,120]
[354677394,1740612656007,-7716.64,0.00049863,120]
[354677395,1740612656017,-11356.27,0.00049863,120]
[354677396,1740612656027,-8145.14,0.00049863,120]
[354677397,1740612656036,-2928.74,0.00049863,120]
[354677398,1740612656045,-982.75,0.00049863,120]
[354677399,1740612656054,-513.83,0.00049863,120]
[354677400,1740612656064,-802.07,0.00049863,120]
[354677401,1740612656074,-3574.17,0.00049863,120]
[354677402,1740612656084,-1405.43,0.00049863,120]
[354677403,1740612656093,-511.36,0.00049863,30]
[354677404,1740612656102,-7025.95,0.00049863,120]
[354677405,1740612656112,-1769.31,0.00049863,120]
[354677406,1740612656122,-11606.25,0.00049863,3]
[354677407,1740612656132,-253.599015,0.00049863,120]
[354677408,1740612656141,-253.599015,0.00049863,120]
[354677409,1740612656152,-6098.04,0.00049863,120]
[354677410,1740612656161,-977.962218,0.00049863,120]
[354677411,1740612656171,-5165.94,0.00049863,120]
[354677412,1740612656180,-977.962218,0.00049863,120]
[354677413,1740612656189,-1296.39,0.00049863,120]
[354677414,1740612656198,-1000.0,0.00049863,2]
[354677415,1740612656208,-500.0,0.00049863,120]
[354677416,1740612656218,-1434.05,0.00049863,120]
[354677417,1740612656227,-602.5,0.00049863,120]
[354677418,1740612656236,-500.0,0.00049863,120]
[354677419,1740612656245,-298.512815,0.00049863,120]
[354677420,1740612656254,-11788.68,0.00049863,120]
[354677421,1740612656263,-298.512815,0.00049863,120]
[354677422,1740612656274,-3610.93,0.00049863,120]
[354677423,1740612656283,-1267.92,0.00049863,120]
[354677424,1740612656293,-2222.15,0.00049863,120]
[354677425,1740612656302,-600.75,0.00049863,120]
[354677426,1740612656311,-500.0,0.00049863,120]
[354677427,1740612656321,-963.51,0.00049863,120]
[354677428,1740612656331,-1872.17,0.00049863,120]
[354677429,1740612656340,-7675.21,0.00049863,120]
[354677430,1740612656349,-3447.65,0.00049863,120]
[354677431,1740612656358,-500.0,0.00049863,120]
[354677432,1740612656368,-1518.89,0.00049863,120]
[354677433,1740612656377,-828.63,0.00049863,120]
[354677434,1740612656386,-874.37,0.00049863,120]
[354677435,1740612656396,-16446.27,0.00049863,120]
[354677436,1740612656405,-987.91,0.00049863,120]
[354677437,1740612656414,-544.41,0.00049863,120]
[354677438,1740612656423,-500.0,0.00049863,120]
[354677439,1740612656433,-500.0,0.00049863,120]
[354677440,1740612656442,-500.0,0.00049863,120]
[354677441,1740612656452,-1207.51,0.00049868,120]
[354677442,1740612656461,-818.25,0.00049868,120]
[354677443,1740612656470,-582.64,0.00049868,120]
[354677444,1740612656479,-502.64896479,0.00049868,120]
[354677445,1740612656488,-565.06,0.00049868,120]
[354677446,1740612656498,-797.5,0.00049868,120]
[354677447,1740612656507,-699.41,0.00049868,120]
[354677448,1740612656516,-2789.44,0.00049868,120]
[354677449,1740612656525,-650.93,0.00049868,120]
[354677450,1740612656534,-910.21,0.00049868,120]
[354677451,1740612656543,-500.0,0.00049868,120]
[354677452,1740612656552,-3161.02,0.00049868,120]
[354677453,1740612656562,-525.08112949,0.00049868,120]
[354677454,1740612656571,-500.0,0.00049868,120]
[354677455,1740612656580,-725.05,0.00049868,120]
[354677456,1740612656589,-553.3441229,0.00049868,120]
[354677457,1740612656598,-500.0,0.00049868,120]
[354677458,1740612656607,-1532.22,0.00049868,120]
[354677459,1740612656616,-3123.49,0.00049868,120]
[354677460,1740612656626,-696.04,0.00049868,120]
[354677461,1740612656635,-775.5,0.00049868,120]
[354677462,1740612656646,-1560.0,0.00049868,120]
[354677463,1740612656655,-554.15,0.00049868,120]
[354677464,1740612656665,-508.29,0.00049868,120]
[354677465,1740612656675,-636.3,0.00049868,120]
[354677466,1740612656686,-1875.09,0.00049868,120]
[354677467,1740612656698,-500.0,0.00049868,120]
[354677468,1740612656708,-506.26,0.00049868,120]
[354677469,1740612656717,-727.01,0.00049868,120]
[354677470,1740612656727,-738.9,0.00049868,120]
[354677471,1740612656736,-500.0,0.00049868,120]
[354677472,1740612656745,-500.0,0.00049868,120]
[354677473,1740612656754,-500.0,0.00049868,120]
[354677474,1740612656764,-500.0,0.00049868,15]
[354677475,1740612656775,-500.0,0.00049868,120]
[354677476,1740612656785,-2768.85,0.00049868,120]
[354677477,1740612656794,-937.23,0.00049868,120]
[354677478,1740612656804,-786.35,0.00049868,120]
[354677479,1740612656813,-540.54,0.00049892,120]
[354677480,1740612656823,-717.99,0.00049892,120]
[354677481,1740612656831,-913.57,0.00049892,120]
[354677482,1740612656840,-500.0,0.00049892,120]
[354677483,1740612656850,-1771.38,0.00049892,120]
[354677484,1740612656859,-500.0,0.00049892,120]
[354677485,1740612656868,-1070.59,0.00049892,120]
[354677486,1740612656878,-500.0,0.00049892,120]
[354677487,1740612656887,-2028.34,0.00049892,120]
[354677488,1740612656897,-724.64,0.00049892,120]
[354677489,1740612656907,-500.0,0.00049892,120]
[354677490,1740612656916,-1677.07,0.00049892,120]
[354677491,1740612656926,-700.65,0.00049892,120]
[354677492,1740612656935,-1712.4,0.00049892,120]
[354677493,1740612656944,-500.0,0.00049892,120]
[354677494,1740612656955,-2539.69,0.00049892,120]
[354677495,1740612656964,-712.64,0.00049892,120]
[354677496,1740612656974,-500.0,0.00049892,120]
[354677497,1740612656983,-500.0,0.00049892,120]
[354677498,1740612656993,-810.43,0.00049892,120]
[354677499,1740612657002,-3307.1,0.00049892,120]
[354677500,1740612657012,-500.0,0.00049892,120]
[354677501,1740612657021,-500.0,0.00049892,120]
[354677502,1740612657030,-618.09,0.00049892,120]
[354677503,1740612657039,-882.96,0.00049892,120]
[354677504,1740612657049,-1050.94,0.00049892,120]
[354677505,1740612657058,-500.0,0.00049892,120]
[354677506,1740612657068,-500.0,0.00049892,120]
[354677507,1740612657077,-625.66,0.00049892,120]
[354677508,1740612657086,-1339.38,0.00049892,120]
[354677509,1740612657095,-778.41,0.00049892,120]
[354677510,1740612657105,-500.0,0.00049892,120]
[354677511,1740612657114,-500.0,0.00049892,120]
[354677512,1740612657123,-500.0,0.00049892,120]
[354677513,1740612657132,-536.72,0.00049892,120]
[354677514,1740612657141,-500.0,0.00049892,120]
[354677515,1740612657152,-500.0,0.00049892,120]
[354677516,1740612657167,-500.0,0.00049892,120]
[354677517,1740612657176,-500.0,0.00049892,120]
[354677518,1740612657185,-151.0,0.00049892,120]
[354677519,1740612657195,-500.0,0.00049894,120]
[354677520,1740612657205,-500.0,0.00049894,120]
[354677521,1740612657215,-611.27,0.00049894,120]
[354677522,1740612657226,-325.00523142,0.000499,120]
[354677523,1740612657237,-1000.0,0.00049999,120]
[354677524,1740612657249,-5000.0,0.0005,100]
[354677525,1740612657259,-151.0,0.00050027,120]